bitfinex/quotes_ETHUSD_20260114
["timestamp","ask_amount","ask_price","bid_price","bid_amount"]
[1768404483044,8.26977581,3354.0,3352.7,0.001]
[1768404483239,2.9815146,3354.0,3352.8,1.9395721]
[1768404483459,3.22248508,3354.2,3352.8,1.9395721]
[1768404483650,0.27858895,3354.1,3352.8,1.9395721]
[1768404483976,5.96273518,3354.2,3353.0,0.001]
[1768404484172,0.28059826,3354.1,3353.0,0.001]
[1768404484337,0.002,3354.1,3353.0,0.001]
[1768404484713,2.306784,3354.0,3353.0,0.001]
[1768404484839,0.27860466,3353.9,3353.0,0.001]
[1768404485169,3.36275711,3353.8,3353.0,0.001]
[1768404485357,1.99091041,3353.7,3353.0,0.001]
[1768404485561,1.99091041,3353.5,3352.1,0.001]
[1768404485738,1.99091041,3353.5,3352.1,2.98412796]
[1768404485739,0.50932663,3353.4,3352.1,2.98412796]
[1768404486052,0.2786709,3353.3,3352.1,0.001]
[1768404486262,2.37191041,3353.2,3352.1,0.001]
[1768404487048,6.24323413,3353.1,3352.1,0.001]
[1768404487250,1.99091041,3352.8,3351.1,1.9395721]
[1768404487458,1.99091041,3352.6,3350.7,2.3085721]
[1768404487672,2.2695148,3352.5,3350.7,2.3085721]
[1768404487842,2.2695148,3352.4,3350.9,2.9842551]
[1768404488045,0.27860439,3352.3,3350.9,2.9842551]
[1768404488248,0.22695148,3352.2,3350.7,2.3085721]
[1768404488473,0.22695148,3352.2,3350.5,2.98457951]
[1768404488474,2.37291041,3352.1,3350.5,2.98457951]
[1768404488660,2.37291041,3352.1,3350.5,0.369]
[1768404488861,2.37291041,3352.1,3350.4,2.98569683]
[1768404488862,2.37291041,3352.1,3350.4,2.98568867]
[1768404489053,1.99091041,3351.8,3350.4,0.001]
[1768404489887,5.9667651,3351.9,3350.4,0.001]
[1768404489888,1.99091041,3351.4,3350.4,0.001]
[1768404490066,0.52813726,3351.7,3350.1,0.001]
[1768404490067,1.99091041,3351.2,3350.1,0.001]
[1768404490377,0.2650723,3351.1,3350.1,0.001]
[1768404491350,0.382,3351.0,3350.1,0.001]
[1768404492280,2.98373862,3351.5,3350.2,1.9395721]
[1768404492448,0.382,3351.4,3350.2,1.9395721]
[1768404493249,0.382,3351.4,3350.2,4.92439211]
[1768404493551,1.99091041,3352.2,3350.2,1.9395721]
[1768404493756,1.99091041,3352.0,3350.2,1.9395721]
[1768404494149,11.93175036,3352.4,3350.2,1.9395721]
[1768404494150,1.99091041,3351.8,3350.2,1.9395721]
[1768404494746,1.99091041,3351.8,3350.1,0.001]
[1768404495181,1.99091041,3351.6,3350.1,0.001]
[1768404495569,1.99091041,3351.4,3350.1,0.001]
[1768404495789,2.37291041,3351.3,3350.1,0.001]
[1768404496285,2.98373862,3351.5,3350.1,1.9405721]
[1768404496466,0.382,3351.9,3350.3,1.9395721]
[1768404496665,0.23729104,3351.8,3350.5,1.9395721]
[1768404497087,0.23729104,3351.8,3350.4,0.23095721]
[1768404497088,0.0372945,3351.7,3350.4,0.23095721]
[1768404497300,2.02820491,3351.7,3350.1,1.9405721]
[1768404497589,1.99091041,3351.5,3350.1,0.001]
[1768404497814,1.99091041,3351.5,3350.4,0.001]
[1768404499293,2.37291041,3351.4,3350.4,0.001]
[1768404499667,5.96783336,3351.3,3350.4,0.001]
[1768404499880,10.9799594,3351.3,3350.4,0.001]
[1768404500088,1.96938582,3351.2,3350.1,0.001]
[1768404501068,1.96938582,3351.2,3348.6,2.19424448]
[1768404501069,2.01970459,3350.5,3348.6,2.19424448]
[1768404501269,2.01970459,3350.4,3348.9,1.94204856]
[1768404501455,0.382,3350.3,3349.1,1.94204856]
[1768404501654,5.96979284,3350.2,3349.1,2.43484572]
[1768404501994,0.382,3350.3,3349.2,1.94204856]
[1768404502912,0.382,3350.5,3349.2,1.94204856]
[1768404503392,7.98753795,3351.3,3349.2,1.94204856]
[1768404503551,0.382,3351.2,3349.2,1.94204856]
[1768404503754,2.98409477,3351.1,3349.5,1.94204856]
[1768404504086,0.382,3351.2,3349.5,1.94204856]
[1768404504387,0.382,3351.1,3349.5,1.94204856]
[1768404505696,3.36610255,3351.1,3349.7,1.94204856]
[1768404505851,0.382,3351.1,3349.7,1.94204856]
[1768404506057,2.17970459,3352.5,3349.9,1.94204856]
[1768404506282,8.94801204,3352.7,3349.9,1.94204856]
[1768404506283,2.40170459,3352.4,3349.9,2.03237328]
[1768404507371,2.01970459,3352.2,3349.9,1.94204856]
[1768404507679,2.01970459,3352.0,3350.0,1.94204856]
[1768404507880,7.98664771,3351.8,3350.1,2.98498552]
[1768404508086,2.40170459,3351.7,3350.1,1.94204856]
[1768404508284,2.01970459,3351.5,3349.8,0.82819107]
[1768404508501,2.30090245,3351.4,3349.8,1.94204856]
[1768404508676,2.01970459,3351.4,3349.8,1.94204856]
[1768404508874,2.01970459,3351.4,3349.5,0.37]
[1768404509078,2.01970459,3351.4,3349.5,2.98550311]
[1768404509318,2.01970459,3351.4,3349.4,1.94204856]
[1768404509606,2.01970459,3351.2,3349.4,1.94204856]
[1768404509813,2.01970459,3351.0,3349.4,1.94204856]
[1768404510119,5.96854576,3350.9,3349.4,1.94204856]
[1768404510314,5.96854576,3350.9,3349.4,4.92765213]
[1768404510516,5.96854576,3350.9,3349.5,1.94204856]
[1768404511612,0.03730452,3350.8,3349.2,3.35573721]
[1768404511780,5.96854576,3350.9,3349.3,2.98568412]
[1768404511986,5.96890202,3350.7,3349.3,2.98568412]
[1768404512377,5.96890202,3350.7,3349.2,2.31204856]
[1768404512577,0.03730675,3350.6,3349.2,2.8418493]
[1768404512782,0.382,3350.5,3349.2,5.29780318]
[1768404513014,2.40170459,3350.5,3348.7,1.94204856]
[1768404513311,2.40170459,3350.5,3348.8,1.94204856]
[1768404513517,2.40170459,3350.5,3348.8,4.92813854]
[1768404513687,2.40170459,3350.5,3348.8,1.94204856]
[1768404513882,2.40170459,3350.5,3348.8,4.92813082]
[1768404514082,5.96943648,3350.4,3348.9,2.98603765]
[1768404514288,6.20960694,3350.4,3348.9,2.98603765]
[1768404514489,6.20960694,3350.4,3348.8,4.92816617]
[1768404515123,9.19432518,3350.4,3348.8,1.94204856]
[1768404515319,6.20960694,3350.4,3348.8,4.92812139]
[1768404515638,5.96943648,3350.4,3348.8,4.92812139]
[1768404515934,5.96943648,3350.4,3348.8,4.92818916]
[1768404516243,0.2781489,3350.3,3348.8,4.92818916]
[1768404516439,5.96943648,3350.4,3348.8,4.92818916]
[1768404516732,0.27814907,3350.3,3348.8,4.92818916]
[1768404516933,5.96943648,3350.4,3348.8,4.92818916]
[1768404517145,0.27815063,3350.3,3348.8,4.92818916]
[1768404517353,5.96943648,3350.4,3348.8,4.92818916]
[1768404517514,0.66028775,3350.3,3348.8,4.92818916]
[1768404517848,0.27828775,3350.2,3348.8,4.92818916]
[1768404518215,2.98498552,3350.1,3348.8,4.42868916]
[1768404518646,5.96997104,3350.1,3348.8,4.42868916]
[1768404518963,2.98498552,3350.1,3348.8,4.42868916]
[1768404519315,2.98498552,3350.1,3348.9,1.94204856]
[1768404520140,6.35197104,3350.1,3348.9,1.94204856]
[1768404520339,3.36698552,3350.1,3348.9,4.92807646]
[1768404520841,2.01970459,3351.2,3349.1,1.94204856]
[1768404521018,0.66029332,3351.1,3349.3,1.94204856]
[1768404521221,0.66026681,3351.0,3349.3,1.94204856]
[1768404521422,0.382,3351.0,3349.3,1.94204856]
[1768404521621,0.382,3351.0,3349.5,1.94204856]
[1768404521825,0.382,3351.0,3349.5,2.31204856]
[1768404522040,2.29798355,3350.9,3349.5,1.94204856]
[1768404522245,2.01970459,3350.7,3349.2,0.37]
[1768404522444,2.98454008,3350.6,3349.3,0.31034705]
[1768404522646,2.98454008,3350.6,3349.3,5.238062]
[1768404523016,5.96908016,3350.6,3349.3,5.238062]
[1768404523247,2.98454008,3350.6,3349.3,5.238062]
[1768404523450,2.98454008,3350.6,3349.4,0.5608062]
[1768404523649,2.98454008,3350.6,3349.4,2.50285476]
[1768404523840,2.98454008,3350.6,3349.5,1.94204856]
[1768404524022,2.98454008,3350.6,3349.4,0.5608062]
[1768404524023,5.96908016,3350.6,3349.4,0.5608062]
[1768404524226,2.98454008,3350.6,3349.4,0.5608062]
[1768404524525,5.96854576,3350.9,3349.6,1.94204856]
[1768404524730,0.66037804,3350.8,3349.6,1.94204856]
[1768404524946,0.382,3350.8,3349.6,1.94204856]
[1768404525921,0.002,3350.3,3349.6,1.94204856]
[1768404526526,0.002,3350.3,3349.6,4.92746013]
[1768404526731,0.002,3350.3,3349.6,5.80588114]
[1768404527159,0.002,3350.3,3349.6,2.82046957]
[1768404527328,0.002,3350.3,3349.3,1.94204856]
[1768404527530,0.002,3350.3,3349.3,4.92772431]
[1768404527734,0.002,3350.3,3349.3,1.94204856]
[1768404528353,0.002,3350.3,3349.4,1.94204856]
[1768404529540,0.002,3350.3,3349.3,2.9856706]
[1768404530274,0.382,3350.2,3349.1,0.001]
[1768404530438,3.22535598,3350.1,3349.1,0.001]
[1768404530641,3.60735598,3350.1,3349.1,0.001]
[1768404531257,0.24037046,3350.1,3349.1,1.92657115]
[1768404531468,3.36887891,3350.3,3349.1,1.92657115]
[1768404531984,0.384,3350.3,3349.1,1.92657115]
[1768404532274,0.0373112,3350.2,3349.1,1.92657115]
[1768404532451,3.36883881,3350.3,3349.2,4.9113588]
[1768404532773,0.384,3350.3,3349.3,1.92557115]
[1768404533351,0.002,3350.3,3349.4,2.29557115]
[1768404534376,0.002,3350.3,3349.6,1.92557115]
[1768404535501,0.002,3350.6,3349.9,1.92557115]
[1768404535665,0.002,3350.6,3350.0,2.29557115]
[1768404535982,0.002,3350.6,3350.1,0.22955711]
[1768404536491,0.002,3350.6,3350.1,0.37]
[1768404536653,0.002,3350.6,3350.2,1.92557115]
[1768404538680,0.002,3350.6,3350.2,4.91044486]
[1768404538879,5.96683554,3351.9,3350.3,1.92557115]
[1768404539186,0.27867795,3351.8,3350.5,1.92557115]
[1768404539355,2.00122678,3351.8,3350.6,0.37]
[1768404539550,2.00122678,3351.8,3350.5,1.92557115]
[1768404539551,2.24248949,3351.7,3350.4,0.82653413]
[1768404539760,1.96393339,3351.5,3350.2,2.98489448]
[1768404540066,1.96393339,3351.5,3350.3,0.37]
[1768404540067,0.002,3350.6,3350.3,0.37]
[1768404540250,1.96393339,3351.8,3350.4,0.82654437]
[1768404540453,0.27854578,3351.7,3350.3,2.29557115]
[1768404540649,2.98373862,3351.5,3350.4,2.98471824]
[1768404540880,1.96393339,3351.8,3350.4,2.98471824]
[1768404541094,0.27853986,3351.7,3350.4,4.91028939]
[1768404541379,0.27853986,3351.7,3350.5,0.37]
[1768404541380,2.00122789,3351.7,3350.5,0.37]
[1768404541599,1.96393339,3351.7,3350.6,0.37]
[1768404541758,2.00122789,3351.7,3350.3,0.37]
[1768404542088,2.00122789,3351.7,3350.3,3.35477207]
[1768404542398,0.002,3352.0,3350.4,1.92557115]
[1768404542698,6.24513704,3351.9,3350.5,4.9102003]
[1768404542861,2.98340094,3351.9,3350.5,7.89482945]
[1768404543264,2.00122678,3351.8,3350.5,1.92557115]
[1768404543566,1.96393339,3351.8,3350.5,1.92557115]
[1768404543785,2.00122789,3351.7,3350.3,2.98478012]
[1768404543953,2.00122789,3351.7,3350.0,1.92557115]
[1768404544155,2.24221048,3351.6,3350.1,2.29557115]
[1768404544363,0.382,3351.7,3350.4,4.91026888]
[1768404544566,0.382,3351.7,3350.4,1.92557115]
[1768404544872,0.382,3351.7,3350.1,1.92557115]
[1768404544873,5.96747724,3351.5,3350.1,1.92557115]
[1768404545068,2.98373862,3351.5,3350.5,0.37]
[1768404545262,0.382,3351.7,3350.5,0.37]
[1768404545263,0.382,3351.7,3350.5,2.29557115]
[1768404545503,3.36558286,3351.7,3350.6,1.92557115]
[1768404545911,0.382,3351.7,3350.6,1.92557115]
[1768404546068,3.36562004,3351.7,3350.6,1.92557115]
[1768404546697,0.03729562,3351.6,3350.6,1.92557115]
[1768404546907,0.03729562,3351.6,3350.5,0.37]
[1768404546908,2.00122901,3351.6,3350.5,0.37]
[1768404547394,3.36562004,3351.7,3350.6,2.98452776]
[1768404547901,0.382,3351.7,3350.6,4.91009891]
[1768404548102,0.382,3351.7,3350.6,7.89463899]
[1768404548767,0.382,3351.7,3350.6,4.91009891]
[1768404548971,0.382,3351.7,3350.7,2.45358104]
[1768404549378,0.002,3352.0,3350.8,1.92557115]
[1768404550905,0.002,3352.0,3350.9,7.89411691]
[1768404551100,0.002,3352.0,3351.0,2.29557115]
[1768404551403,0.002,3352.0,3351.1,2.75198284]
[1768404551706,0.002,3352.0,3351.2,1.92557115]
[1768404552289,0.002,3352.0,3351.3,0.37]
[1768404552495,1.96593339,3352.0,3349.3,1.92557115]
[1768404552698,5.9672992,3351.6,3349.9,1.92557115]
[1768404552909,5.9672992,3351.6,3350.4,0.001]
[1768404553292,0.002,3351.4,3350.4,0.001]
[1768404554298,2.34593339,3351.3,3350.4,0.001]
[1768404554698,0.382,3351.3,3350.4,0.001]
[1768404555031,1.01712992,3351.3,3350.4,0.001]
[1768404555201,0.382,3351.3,3350.4,1.92657115]
[1768404555525,0.002,3351.4,3350.4,1.92657115]
[1768404555732,2.98582806,3351.4,3350.5,0.37]
[1768404556218,2.98582806,3351.4,3350.4,1.92657115]
[1768404556219,2.98582806,3351.4,3350.4,2.29657115]
[1768404556421,0.59695832,3351.3,3350.4,2.29657115]
[1768404556921,0.59695832,3351.3,3350.5,0.37]
[1768404557593,0.002,3351.4,3350.5,2.29557115]
[1768404557791,0.002,3351.4,3350.6,1.92557115]
[1768404558307,0.002,3351.4,3350.8,1.92557115]
[1768404558795,0.002,3351.4,3350.9,2.98427288]
[1768404558989,0.002,3351.4,3351.0,0.37]
[1768404559190,0.002,3351.4,3351.0,0.53701688]
[1768404559396,0.002,3351.4,3351.0,0.90701688]
[1768404559823,0.002,3351.4,3350.9,0.37]
[1768404560069,0.002,3351.4,3350.6,3.35453489]
[1768404560234,0.002,3351.4,3350.6,0.37]
[1768404560437,0.002,3351.4,3350.6,3.35448935]
[1768404560969,0.002,3351.4,3350.7,2.98444975]
[1768404561145,0.002,3351.4,3350.6,0.37]
[1768404561454,0.002,3351.4,3350.6,4.18111226]
[1768404563759,0.002,3351.4,3350.4,0.001]
[1768404564678,0.002,3351.4,3350.4,2.9857101]
[1768404565278,0.002,3351.4,3350.4,0.001]
[1768404566146,1.91539783,3351.4,3350.4,0.001]
[1768404566345,5.9672992,3351.6,3349.7,0.371]
[1768404566576,0.59692992,3351.5,3350.4,1.92827553]
[1768404566790,2.98382765,3351.4,3350.4,1.92827553]
[1768404566949,5.9676553,3351.4,3350.4,1.92827553]
[1768404567420,5.9676553,3351.4,3349.3,0.09032472]
[1768404567421,0.91331367,3351.3,3349.9,2.29927553]
[1768404567548,1.76251446,3351.3,3349.9,1.92827553]
[1768404567878,1.76251446,3351.3,3349.9,2.29927553]
[1768404567879,1.72523731,3351.3,3349.9,2.29927553]
[1768404568073,1.72523731,3351.3,3350.0,1.92827553]
[1768404568273,0.63420707,3351.2,3350.0,1.92827553]
[1768404568577,0.59692992,3351.2,3350.8,0.001]
[1768404568761,5.97018954,3351.1,3350.0,1.92827553]
[1768404569580,0.03727715,3351.0,3350.0,1.92827553]
[1768404569907,0.42027715,3351.0,3350.0,1.92827553]
[1768404570194,0.69873966,3350.9,3349.6,0.371]
[1768404570395,0.88345351,3350.8,3349.1,1.92827553]
[1768404570552,0.88345351,3350.8,3349.2,1.92827553]
[1768404570754,6.85235553,3350.7,3349.3,1.92827553]
[1768404570957,0.74739105,3350.6,3349.4,1.92827553]
[1768404571210,1.63327211,3350.6,3349.0,5.28515442]
[1768404571504,0.88588106,3350.5,3349.0,5.28515442]
[1768404571704,0.74739105,3350.6,3349.0,5.28515442]
[1768404571705,0.383,3350.4,3349.2,1.92827553]
[1768404572877,5.96961466,3350.3,3349.2,1.92827553]
[1768404573082,0.69873966,3350.2,3348.8,5.2854082]
[1768404573282,0.89064884,3350.1,3348.3,1.92827553]
[1768404573602,0.89064884,3349.9,3347.9,1.92827553]
[1768404573802,0.89064884,3349.7,3348.1,4.91499047]
[1768404574107,0.89064884,3349.7,3348.1,4.91504059]
[1768404574428,0.89064884,3349.7,3348.2,0.79019621]
[1768404574780,5.97086218,3349.6,3348.2,0.79019621]
[1768404575491,5.97086218,3349.6,3348.1,1.92827553]
[1768404576303,0.383,3349.5,3348.2,2.98667854]
[1768404576486,0.383,3349.5,3348.2,4.91495407]
[1768404576693,0.383,3349.5,3348.2,1.92827553]
[1768404576895,5.97121872,3349.4,3348.2,1.92827553]
[1768404577089,0.63542187,3349.3,3348.2,1.92827553]
[1768404579102,5.9715753,3349.2,3348.2,1.92827553]
[1768404579703,5.9715753,3349.2,3347.7,2.9870949]
[1768404579704,5.9715753,3349.2,3347.7,1.92827553]
[1768404579916,5.9715753,3349.2,3347.8,1.92827553]
[1768404579917,0.90657469,3349.1,3347.8,1.92827553]
[1768404580110,0.383,3349.0,3347.8,1.92827553]
[1768404580910,2.98605512,3348.9,3347.8,1.92827553]
[1768404581115,5.97211024,3348.9,3347.9,2.12110308]
[1768404581314,5.97211024,3348.9,3347.9,1.92827553]
[1768404581483,0.95874377,3348.8,3346.8,0.52637561]
[1768404581686,0.09032472,3349.7,3347.9,1.92827553]
[1768404581687,0.383,3348.7,3347.9,1.92827553]
[1768404582004,0.383,3348.6,3348.0,1.92827553]
[1768404582312,0.383,3348.5,3348.0,1.92827553]
[1768404582715,0.383,3348.4,3348.0,1.92827553]
[1768404583194,0.383,3348.4,3347.4,1.92827553]
[1768404583511,0.383,3348.3,3347.9,1.92827553]
[1768404583716,0.383,3348.3,3348.0,0.19282755]
[1768404583882,0.383,3348.3,3347.9,1.92827553]
[1768404585818,0.383,3348.3,3347.8,1.92827553]
[1768404587614,0.383,3349.1,3347.9,1.92827553]
[1768404587804,0.383,3349.1,3348.1,1.92827553]
[1768404588007,0.03727715,3349.0,3348.1,1.92827553]
[1768404588207,0.383,3349.1,3348.4,0.00716186]
[1768404589017,0.383,3349.1,3348.4,1.93543739]
[1768404589218,3.36894948,3349.1,3348.4,0.00716186]
[1768404589422,0.3741721,3349.0,3348.4,0.00716186]
[1768404590116,0.3741721,3349.0,3346.5,3.23389511]
[1768404590117,0.3741721,3349.0,3347.8,1.92827553]
[1768404591122,5.97211024,3348.9,3347.8,1.92827553]
[1768404591301,0.03727715,3348.8,3347.8,1.92827553]
[1768404591623,0.03727715,3348.8,3347.5,1.98285477]
[1768404591824,0.63462823,3348.7,3347.5,1.98285477]
[1768404591995,0.03727715,3348.6,3347.5,1.98285477]
[1768404592197,0.383,3348.5,3347.2,1.98285477]
[1768404592413,1.36648059,3348.5,3347.2,1.98285477]
[1768404593305,5.97300202,3348.4,3347.2,1.98285477]
[1768404593496,0.47460753,3348.3,3347.2,1.98285477]
[1768404594222,1.46187487,3348.3,3347.0,4.97054551]
[1768404594427,1.46187487,3348.3,3347.0,1.98285477]
[1768404594625,1.46187487,3348.3,3347.0,4.97059374]
[1768404594830,0.47460753,3348.3,3347.1,1.98285477]
[1768404595031,0.33689495,3348.2,3347.1,1.98285477]
[1768404595233,2.98676861,3348.1,3347.1,1.98285477]
[1768404595629,5.97351816,3348.2,3347.1,1.98285477]
[1768404595818,2.98675908,3348.2,3347.1,1.98285477]
[1768404596342,2.98675908,3348.2,3347.5,0.001]
[1768404596548,0.64479503,3348.1,3347.5,0.001]
[1768404596747,0.47460753,3348.3,3347.5,1.98385477]
[1768404596934,0.383,3348.0,3347.5,1.98385477]
[1768404597295,0.47460753,3348.3,3347.5,1.98385477]
[1768404597506,0.383,3348.2,3347.5,1.98385477]
[1768404598303,2.98642843,3348.5,3347.6,2.01272691]
[1768404598499,0.68164284,3348.4,3347.6,1.98285477]
[1768404599628,3.66817439,3348.4,3347.6,1.98285477]
[1768404599833,3.36953155,3348.4,3347.6,1.98285477]
[1768404600455,6.3560631,3348.4,3347.5,0.001]
[1768404600605,3.36953155,3348.4,3347.5,0.001]
[1768404600913,0.383,3348.3,3347.5,1.98385477]
[1768404601126,0.03727715,3348.2,3347.5,0.001]
[1768404601422,2.98694704,3347.9,3346.5,1.98285477]
[1768404601623,0.383,3347.8,3346.6,2.21102132]
[1768404601842,2.98623346,3348.7,3346.6,2.21102132]
[1768404602033,0.69880245,3348.6,3346.6,2.27146497]
[1768404602349,1.00157748,3348.4,3346.8,1.98285477]
[1768404602651,0.6615253,3348.3,3346.8,1.98285477]
[1768404602799,0.383,3348.3,3346.8,1.98285477]
[1768404603618,0.383,3348.2,3347.0,1.98285477]
[1768404603834,0.383,3348.1,3347.2,1.98285477]
[1768404604013,0.383,3348.2,3347.2,1.98285477]
[1768404604415,1.32108304,3348.1,3346.8,1.98285477]
[1768404604614,0.27884971,3348.0,3346.8,1.98285477]
[1768404604820,0.03727715,3347.9,3346.9,1.98285477]
[1768404605033,0.27888731,3347.8,3346.6,1.98285477]
[1768404605299,1.79,3347.6,3346.5,4.97104641]
[1768404605529,0.69055064,3347.5,3346.6,3.01798544]
[1768404605728,2.98652295,3348.4,3346.6,3.01798544]
[1768404605729,5.9733588,3348.2,3346.8,1.98285477]
[1768404605931,0.31608934,3348.1,3346.8,1.98285477]
[1768404606110,0.27881219,3348.0,3346.8,1.98285477]
[1768404606310,1.99155344,3347.9,3346.5,1.98285477]
[1768404606527,1.28703148,3347.8,3346.6,2.98806142]
[1768404606724,0.27876155,3347.7,3346.5,1.98285477]
[1768404606923,0.27876155,3347.7,3346.6,1.98285477]
[1768404607125,0.19542763,3347.7,3346.6,2.77878869]
[1768404607323,0.19542763,3347.7,3345.9,1.98285477]
[1768404607324,1.00990086,3347.3,3345.9,1.98285477]
[1768404607527,5.97532192,3347.1,3345.9,1.98285477]
[1768404607715,0.27875357,3347.0,3345.9,1.98285477]
[1768404608016,1.01151482,3346.9,3345.2,1.98285477]
[1768404608226,8.96298288,3347.1,3345.4,4.97197627]
[1768404608227,1.3467579,3346.8,3345.4,4.97197627]
[1768404608442,0.383,3346.7,3345.8,1.98285477]
[1768404608617,0.383,3346.7,3345.7,2.98882877]
[1768404608827,2.41305089,3346.7,3345.0,1.98285477]
[1768404609014,0.27858087,3346.6,3345.2,1.98285477]
[1768404609214,2.41305089,3346.7,3345.3,1.98285477]
[1768404609418,2.41305089,3346.7,3345.3,2.18114025]
[1768404609617,8.00626555,3346.6,3345.3,2.18114025]
[1768404609953,10.99437288,3346.6,3345.3,2.18114025]
[1768404610148,2.03005089,3346.5,3345.0,1.98285477]
[1768404610343,2.03005089,3346.5,3344.7,4.97261077]
[1768404610562,2.03005089,3346.3,3344.4,1.98285477]
[1768404610765,2.03005089,3346.1,3344.4,1.98285477]
[1768404611041,0.71729734,3343.2,3342.5,1.98285477]
[1768404611229,0.384,3343.2,3342.8,1.98285477]
[1768404611433,0.384,3343.2,3342.9,2.31041158]
[1768404611609,0.15534622,3344.1,3342.9,2.31041158]
[1768404611610,0.383,3343.6,3342.9,2.31041158]
[1768404611810,0.383,3343.6,3342.9,2.19017272]
[1768404612016,0.383,3343.6,3342.9,0.20731795]
[1768404612215,0.383,3343.6,3342.5,1.98285477]
[1768404612216,3.37343062,3344.0,3343.2,0.09032472]
[1768404612412,3.37343062,3344.0,3342.8,2.07317949]
[1768404612640,3.37343062,3344.0,3343.0,2.07317949]
[1768404612814,6.36386124,3344.0,3342.6,2.07317949]
[1768404613013,3.3433083,3344.0,3342.8,2.07317949]
[1768404613260,2.99043062,3344.0,3342.6,1.98285477]
[1768404613467,0.384,3343.9,3342.7,1.98285477]
[1768404613672,3.37455775,3343.9,3342.8,2.19017272]
[1768404613943,0.15534622,3344.1,3342.9,2.01276891]
[1768404614143,0.384,3344.0,3342.9,1.98285477]
[1768404614518,0.384,3344.0,3342.8,0.20731795]
[1768404614765,2.41405089,3344.0,3342.4,1.98285477]
[1768404614977,2.41405089,3344.0,3342.0,1.98285477]
[1768404615119,0.384,3343.9,3342.4,1.98285477]
[1768404615315,1.33504442,3343.9,3342.6,1.98285477]
[1768404615517,0.384,3343.8,3342.9,1.98285477]
[1768404615750,0.384,3343.8,3342.5,0.09032472]
[1768404615751,6.36539192,3343.8,3342.5,1.98285477]
[1768404615962,7.01746573,3343.8,3342.6,0.4974699]
[1768404616460,2.03005089,3343.7,3342.1,2.99204183]
[1768404616628,0.384,3343.7,3342.4,1.98285477]
[1768404616817,0.384,3343.7,3341.9,0.09032472]
[1768404616818,0.65207381,3343.8,3342.8,1.98285477]
[1768404617013,0.384,3343.8,3342.9,2.21105439]
[1768404617223,0.384,3343.9,3342.9,2.18114025]
[1768404618117,2.99060948,3343.8,3342.9,2.18114025]
[1768404618322,3.37454545,3343.9,3342.9,2.18114025]
[1768404618655,3.37454545,3343.9,3342.9,5.17253313]
[1768404618856,3.37454545,3343.9,3343.1,1.98285477]
[1768404619356,3.37452292,3343.9,3343.1,1.98285477]
[1768404619717,6.36504584,3343.9,3342.9,0.19828548]
[1768404619920,0.384,3343.8,3342.7,1.98285477]
[1768404620146,0.63650458,3343.7,3342.8,1.99812767]
[1768404620326,0.384,3344.0,3342.8,1.99812767]
[1768404620524,0.384,3344.0,3342.8,2.46045239]
[1768404620761,2.98989415,3344.6,3342.8,2.46045239]
[1768404620965,0.68298941,3344.5,3343.0,2.00499323]
[1768404621165,0.384,3344.4,3343.0,2.00499323]
[1768404621321,2.98962599,3344.9,3343.1,0.02991235]
[1768404621520,0.384,3344.8,3343.2,2.00499323]
[1768404621722,0.384,3344.7,3343.4,2.00499323]
[1768404622355,3.37386724,3344.7,3343.6,2.00499323]
[1768404622525,0.03727715,3344.8,3343.6,2.00499323]
[1768404622526,0.384,3345.0,3343.6,2.00499323]
[1768404622717,0.20535073,3345.4,3343.8,2.00499323]
[1768404622953,0.384,3345.5,3344.0,2.09531795]
[1768404623258,4.88189461,3346.3,3344.3,2.00499323]
[1768404623417,5.97621466,3346.6,3344.5,2.00499323]
[1768404623825,5.97621466,3346.6,3344.4,0.46232472]
[1768404623826,5.97621466,3346.6,3344.7,2.00499323]
[1768404624137,0.384,3346.5,3344.9,2.00499323]
[1768404624453,2.98828591,3346.4,3345.0,8.35606647]
[1768404624619,5.97657182,3346.4,3345.0,8.35606647]
[1768404624962,3.37228591,3346.4,3345.1,2.00499323]
[1768404625171,6.69780041,3346.4,3345.3,2.00499323]
[1768404625333,0.384,3346.3,3345.2,0.83560665]
[1768404626261,5.97692904,3346.2,3344.9,2.00499323]
[1768404626557,0.384,3346.2,3345.0,2.00499323]
[1768404626868,6.31382857,3346.4,3345.0,2.00499323]
[1768404627170,0.384,3346.3,3345.0,2.00499323]
[1768404627324,0.71078772,3346.2,3345.0,2.00499323]
[1768404627552,0.67351057,3346.2,3345.0,2.00499323]
[1768404627907,0.03727715,3346.1,3345.0,2.00499323]
[1768404628211,0.67351057,3346.2,3345.0,2.00499323]
[1768404628357,0.67351057,3346.2,3345.1,7.98388773]
[1768404628694,0.384,3346.5,3345.2,2.803382]
[1768404629691,0.384,3346.4,3345.2,2.803382]
[1768404629892,0.03727715,3346.7,3345.2,2.803382]
[1768404630097,0.384,3346.4,3345.2,2.803382]
[1768404630297,3.02565237,3346.3,3345.2,2.803382]
[1768404630503,0.34096524,3346.2,3344.8,2.37699323]
[1768404630783,2.23447253,3346.2,3344.9,2.98954723]
[1768404630991,0.34096524,3346.2,3345.1,4.99437084]
[1768404631190,0.34096524,3346.2,3345.1,2.00499323]
[1768404631361,0.72496524,3346.2,3345.2,4.99433917]
[1768404631561,0.384,3346.1,3345.2,4.99433917]
[1768404631885,0.384,3346.1,3345.2,2.80337862]
[1768404632085,0.384,3346.1,3345.2,4.99431824]
[1768404632396,3.37257491,3346.1,3345.2,2.00499323]
[1768404632887,3.37257491,3346.1,3345.2,4.99433524]
[1768404633062,3.37257491,3346.1,3345.2,2.00499323]
[1768404633688,0.03727715,3346.0,3344.9,2.98956445]
[1768404633893,0.03727715,3346.0,3345.0,0.83563442]
[1768404634068,6.36114982,3346.1,3344.9,2.00499323]
[1768404634273,6.36114982,3346.1,3345.0,2.98953413]
[1768404634976,6.36114982,3346.1,3344.9,2.98959091]
[1768404635296,8.25465711,3346.1,3344.7,5.36678116]
[1768404635472,1.89350729,3346.0,3344.4,2.00499323]
[1768404635673,1.89350729,3345.8,3344.0,2.00499323]
[1768404635889,1.89350729,3345.6,3344.0,4.99539353]
[1768404636085,1.89350729,3345.4,3344.1,2.99032251]
[1768404636287,0.22775073,3345.3,3344.0,4.99538999]
[1768404636464,5.97871576,3345.2,3343.6,2.00499323]
[1768404636866,2.98935788,3345.2,3344.0,5.98084482]
[1768404637173,5.97871576,3345.2,3344.0,2.9904142]
[1768404637382,8.96807364,3345.2,3343.5,2.37699323]
[1768404637713,1.89350729,3345.0,3343.4,2.9909359]
[1768404637862,2.27750729,3344.9,3343.3,4.99598356]
[1768404638296,2.27750729,3344.9,3343.3,4.99604924]